[Event "RUS-chT Premier 2021"]
[White "Askerov,Marat"]
[Black "Murzin,Volodar"]
[WhiteTeam "СШОР"]
[BlackTeam "Гоголевский, 14"]
[Site "Sochi"]
[Round "3.10"]
[Annotator "ChessBase"]
[Result "0-1"]
[Date "2021.05.03"]
[WhiteElo "2353"]
[BlackElo "2478"]
[PlyCount "94"]
[TimeControl "60"]

1. d4 {[%emt 0:0:0]} Nf6 {[%emt 0:0:0]} 2. c4 {[%emt 0:0:0]} g6 {[%emt 0:0:0]} 3. Nf3 {[%emt 0:0:0]} Bg7 {[%emt 0:0:0]} 4. g3 {[%emt 0:0:0]} 0-0 {[%emt 0:0:19]} 5. Bg2 {[%emt 0:0:0]} d6 {[%emt 0:1:8]} 6. 0-0 {[%emt 0:0:0]} Nbd7 {[%emt 0:1:22]} 7. Nc3 {[%emt 0:0:7]} e5 {[%emt 0:0:15]} 8. e4 {[%emt 0:0:6]} a6 {[%emt 0:1:25]} 9. Re1 {[%emt 0:15:58]} exd4 {[%emt 0:0:0]} 10. Nxd4 {[%emt 0:0:15]} Ng4 {[%emt 0:0:11]} 11. Qxg4 {[%emt 0:21:10]} Bxd4 {[%emt 0:0:25]} 12. Qe2 {[%emt 0:11:7]} Ne5 {[%emt 0:4:53]} 13. Bh6 {[%emt 0:13:8]
} Ng4 {[%emt 0:1:33]} 14. Bxf8 {[%emt 0:1:32]} Bxf2+ {[%emt 0:0:0]} 15. Kh1 {[%emt 0:2:42]} Bxe1 {[%emt 0:1:42]} 16. Rxe1 {[%emt 0:0:7]
} Kxf8 {[%emt 0:2:37]} 17. e5 {[%emt 0:10:15]} Nxe5 {[%emt 0:2:28]} 18. c5 {[%emt 0:0:54]
} Bf5 {[%emt 0:16:51]} 19. Qd2 {[%emt 0:11:22]} Kg7 {[%emt 0:0:0]} 20. Qd4 {[%emt 0:0:13]} Rb8 {[%emt 0:6:25]} 21. Rd1 {[%emt 0:10:38]} b6 {[%emt 0:2:15]} 22. cxb6 {[%emt 0:0:35]} cxb6 {[%emt 0:0:10]} 23. Nd5 {[%emt 0:0:29]
} Be6 {[%emt 0:0:58]} 24. Nb4 {[%emt 0:0:14]} Rc8 {[%emt 0:0:0]} 25. Nc6 {[%emt 0:1:4]} Qf6 {[%emt 0:3:59]} 26. Qxd6 {[%emt 0:0:26]} Nc4 {[%emt 0:0:25]} 27. Qd4 {[%emt 0:0:21]} Nxb2 {[%emt 0:0:8]} 28. Qxf6+ {[%emt 0:0:31]
} Kxf6 {[%emt 0:0:7]} 29. Rd4 {[%emt 0:0:41]} Nc4 {[%emt 0:0:0]} 30. Kg1 {[%emt 0:0:11]} a5 {[%emt 0:3:23]} 31. Kf2 {[%emt 0:0:18]} Ne5 {[%emt 0:0:23]} 32. Rf4+ {[%emt 0:1:3]} Bf5 {[%emt 0:0:8]} 33. Nxe5 {[%emt 0:0:24]
} Kxe5 {[%emt 0:0:22]} 34. Ke1 {[%emt 0:0:36]} Rc2 {[%emt 0:0:0]} 35. Rf2 {[%emt 0:0:25]} Rxf2 {[%emt 0:0:32]} 36. Kxf2 {[%emt 0:0:2]} Be4 {[%emt 0:0:16]} 37. Bf1 {[%emt 0:0:13]} g5 {[%emt 0:0:11]} 38. Bb5 {[%emt 0:0:15]
} f5 {[%emt 0:0:9]} 39. a4 {[%emt 0:0:9]} f4 {[%emt 0:0:4]} 40. gxf4+ {[%emt 0:0:0]} Kxf4 {[%emt 0:0:0]} 41. Be8 {[%emt 0:0:22]} g4 {[%emt 0:0:23]
} 42. Ke2 {[%emt 0:0:51]} Bg6 {[%emt 0:1:51]} 43. Bxg6 {[%emt 0:6:6]
} hxg6 {[%emt 0:0:14]} 44. Kf2 {[%emt 0:0:4]} Kg5 {[%emt 0:0:0]} 45. Kg3 {[%emt 0:1:3]} Kh5 {[%emt 0:0:17]} 46. Kf2 {[%emt 0:1:28]} Kh4 {[%emt 0:0:8]} 47. Kg2 {[%emt 0:0:6]} g5 {[%emt 0:0:6]} 0-1

[Event "RUS-chT Premier 2021"]
[White "Savchenko,Boris"]
[Black "Saveliev,Alexei"]
[WhiteTeam "Гоголевский, 14"]
[BlackTeam "СШОР"]
[Site "Sochi"]
[Round "3.11"]
[Annotator "ChessBase"]
[Result "1-0"]
[Date "2021.05.03"]
[WhiteElo "2552"]
[BlackElo "2358"]
[PlyCount "65"]
[TimeControl "60"]

1. c4 {[%emt 0:0:47]} c5 {[%emt 0:3:24]} 2. Nf3 {[%emt 0:0:50]} Nf6 {[%emt 0:0:49]
} 3. d4 {[%emt 0:0:39]} cxd4 {[%emt 0:0:38]} 4. Nxd4 {[%emt 0:0:0]} b6 {[%emt 0:3:6]} 5. Nc3 {[%emt 0:2:29]} Bb7 {[%emt 0:0:21]} 6. f3 {[%emt 0:0:53]} e6 {[%emt 0:4:11]} 7. e4 {[%emt 0:5:23]} d6 {[%emt 0:0:19]} 8. Be3 {[%emt 0:0:15]} Be7 {[%emt 0:0:5]} 9. Qd2 {[%emt 0:0:19]} 0-0 {[%emt 0:0:30]
} 10. g4 {[%emt 0:0:9]} Nc6 {[%emt 0:5:54]} 11. 0-0-0 {[%emt 0:0:25]
} a6 {[%emt 0:1:19]} 12. Kb1 {[%emt 0:6:49]} Rc8 {[%emt 0:0:0]} 13. Be2 {[%emt 0:4:33]} Qc7 {[%emt 0:11:33]} 14. Rc1 {[%emt 0:11:46]} Qb8 {[%emt 0:0:22]} 15. g5 {[%emt 0:3:55]} Nd7 {[%emt 0:0:59]} 16. h4 {[%emt 0:0:0]} Rfd8 {[%emt 0:5:57]} 17. h5 {[%emt 0:7:31]} Nf8 {[%emt 0:3:52]} 18. h6 {[%emt 0:3:53]} g6 {[%emt 0:2:37]} 19. Nd5 {[%emt 0:2:27]} exd5 {[%emt 0:0:0]} 20. Nxc6 {[%emt 0:1:17]} Bxc6 {[%emt 0:2:36]} 21. cxd5 {[%emt 0:0:0]} Bxd5 {[%emt 0:14:8]} 22. exd5 {[%emt 0:0:18]} Nd7 {[%emt 0:0:7]} 23. Bxa6 {[%emt 0:3:53]} Rxc1+ {[%emt 0:0:17]} 24. Rxc1 {[%emt 0:0:5]} b5 {[%emt 0:1:49]
} 25. Qa5 {[%emt 0:2:57]} Nc5 {[%emt 0:1:11]} 26. Bxb5 {[%emt 0:0:39]
} Qc8 {[%emt 0:1:31]} 27. Bd3 {[%emt 0:0:27]} Qh3 {[%emt 0:0:0]} 28. Qc3 {[%emt 0:1:30]} f6 {[%emt 0:2:2]} 29. gxf6 {[%emt 0:1:15]} Bf8 {[%emt 0:0:9]} 30. Bg5 {[%emt 0:3:16]} Kf7 {[%emt 0:2:28]} 31. b4 {[%emt 0:0:0]} Rb8 {[%emt 0:5:54]} 32. Ka1 {[%emt 0:3:21]} Nd7 {[%emt 0:3:55]} 33. f4 {[%emt 0:0:43]} 1-0

[Event "RUS-chT Premier 2021"]
[White "Timerkhanov,Alexander"]
[Black "Gluhovsky,Mark"]
[WhiteTeam "СШОР"]
[BlackTeam "Гоголевский, 14"]
[Site "Sochi"]
[Round "3.12"]
[Annotator "ChessBase"]
[Result "1/2-1/2"]
[Date "2021.05.03"]
[WhiteElo "2400"]
[BlackElo "2271"]
[PlyCount "118"]
[TimeControl "60"]

1. d4 {[%emt 0:0:0]} Nf6 {[%emt 0:1:49]} 2. Bg5 {[%emt 0:0:0]} g6 {[%emt 0:0:13]
} 3. Bxf6 {[%emt 0:0:0]} exf6 {[%emt 0:0:5]} 4. e3 {[%emt 0:0:0]} d5 {[%emt 0:0:29]} 5. g3 {[%emt 0:1:34]} c6 {[%emt 0:0:23]} 6. Bg2 {[%emt 0:0:9]
} h5 {[%emt 0:0:50]} 7. h4 {[%emt 0:0:31]} Bg4 {[%emt 0:0:17]} 8. Ne2 {[%emt 0:3:2]} Nd7 {[%emt 0:3:27]} 9. Nd2 {[%emt 0:2:26]} Nb6 {[%emt 0:0:43]
} 10. b3 {[%emt 0:8:12]} Bd6 {[%emt 0:17:17]} 11. f3 {[%emt 0:0:0]} Be6 {[%emt 0:5:10]} 12. Kf2 {[%emt 0:1:4]} Qc7 {[%emt 0:3:8]} 13. a4 {[%emt 0:6:19]} a5 {[%emt 0:4:24]} 14. Rc1 {[%emt 0:2:31]} Ba3 {[%emt 0:0:0]} 15. Rb1 {[%emt 0:0:27]} Bd6 {[%emt 0:1:26]} 16. Bh3 {[%emt 0:9:37]} Qd7 {[%emt 0:6:54]} 17. Qf1 {[%emt 0:12:3]} 0-0 {[%emt 0:6:26]} 18. Qg2 {[%emt 0:1:20]
} Bxh3 {[%emt 0:5:25]} 19. Qxh3 {[%emt 0:0:31]} f5 {[%emt 0:0:0]} 20. Rbg1 {[%emt 0:4:44]} Rae8 {[%emt 0:4:53]} 21. Nf1 {[%emt 0:1:19]} Qe6 {[%emt 0:4:22]} 22. g4 {[%emt 0:7:39]} hxg4 {[%emt 0:2:53]} 23. fxg4 {[%emt 0:0:26]
} f4 {[%emt 0:0:57]} 24. Qf3 {[%emt 0:4:1]} fxe3+ {[%emt 0:0:0]} 25. Nxe3 {[%emt 0:0:4]} Qe4 {[%emt 0:0:29]} 26. Rh3 {[%emt 0:1:8]} c5 {[%emt 0:2:1]} 27. c3 {[%emt 0:1:36]} c4 {[%emt 0:1:0]} 28. Qxe4 {[%emt 0:0:0]} Rxe4 {[%emt 0:0:22]} 29. bxc4 {[%emt 0:0:2]} Nxc4 {[%emt 0:2:7]} 30. Nxd5 {[%emt 0:9:8]} Kg7 {[%emt 0:3:25]} 31. h5 {[%emt 0:1:42]} Rfe8 {[%emt 0:1:49]
} 32. Nc1 {[%emt 0:0:17]} Bf4 {[%emt 0:2:2]} 33. h6+ {[%emt 0:0:0]} Kh8 {[%emt 0:1:9]} 34. Nf6 {[%emt 0:0:56]} Re3 {[%emt 0:1:9]} 35. Rf3 {[%emt 0:1:50]} Rxf3+ {[%emt 0:1:46]} 36. Kxf3 {[%emt 0:0:1]} Re6 {[%emt 0:0:26]
} 37. Ne4 {[%emt 0:2:32]} Be3 {[%emt 0:1:29]} 38. Re1 {[%emt 0:0:0]} f5 {[%emt 0:0:20]} 39. Nc5 {[%emt 0:0:33]} Re7 {[%emt 0:0:56]} 40. N1d3 {[%emt 0:0:0]} b6 {[%emt 0:0:0]} 41. Nb3 {[%emt 0:2:0]} fxg4+ {[%emt 0:12:49]
} 42. Kxg4 {[%emt 0:0:5]} Kh7 {[%emt 0:0:24]} 43. Na1 {[%emt 0:4:47]
} Rf7 {[%emt 0:3:23]} 44. Ne5 {[%emt 0:10:4]} Nxe5+ {[%emt 0:0:0]} 45. dxe5 {[%emt 0:0:1]} Bd2 {[%emt 0:0:23]} 46. Re4 {[%emt 0:0:32]} Bxc3 {[%emt 0:0:25]} 47. e6 {[%emt 0:0:7]} Re7 {[%emt 0:0:11]} 48. Nc2 {[%emt 0:0:5]
} Bd2 {[%emt 0:6:32]} 49. Rd4 {[%emt 0:2:39]} Bxh6 {[%emt 0:0:0]} 50. Rd7 {[%emt 0:0:5]} Bf8 {[%emt 0:0:4]} 51. Nd4 {[%emt 0:0:12]} Rxd7 {[%emt 0:2:22]} 52. exd7 {[%emt 0:0:5]} Be7 {[%emt 0:0:2]} 53. Nc6 {[%emt 0:0:41]
} Bf6 {[%emt 0:0:7]} 54. d8=Q {[%emt 0:0:17]} Bxd8 {[%emt 0:0:0]} 55. Nxd8 {[%emt 0:0:2]} Kg7 {[%emt 0:1:1]} 56. Kg5 {[%emt 0:1:55]} Kf8 {[%emt 0:0:30]} 57. Nc6 {[%emt 0:6:51]} Kf7 {[%emt 0:0:57]} 58. Nd4 {[%emt 0:0:15]
} Ke7 {[%emt 0:0:10]} 59. Nb5 {[%emt 0:0:58]} Ke6 1/2-1/2

[Event "RUS-chT Premier 2021"]
[White "Babakekhyan,Artem"]
[Black "Makhmutov,Rail"]
[WhiteTeam "Киммерия"]
[BlackTeam "Ладья"]
[Site "Sochi"]
[Round "3.16"]
[Annotator "ChessBase"]
[Result "1/2-1/2"]
[Date "2021.05.03"]
[WhiteElo "2214"]
[BlackElo "2450"]
[PlyCount "53"]
[TimeControl "60"]

1. Nf3 {[%emt 0:0:0]} d5 {[%emt 0:0:0]} 2. g3 {[%emt 0:0:0]} Nf6 {[%emt 0:0:9]
} 3. Bg2 {[%emt 0:0:0]} c5 {[%emt 0:1:2]} 4. 0-0 {[%emt 0:0:0]} e6 {[%emt 0:0:36]} 5. d4 {[%emt 0:0:38]} cxd4 {[%emt 0:2:12]} 6. Nxd4 {[%emt 0:0:43]
} e5 {[%emt 0:1:11]} 7. Nb3 {[%emt 0:0:9]} Be6 {[%emt 0:2:58]
} 8. Bg5 {[%emt 0:0:53]} Nbd7 {[%emt 0:3:14]} 9. e4 {[%emt 0:0:26]} dxe4 {[%emt 0:4:28]
} 10. Nc3 {[%emt 0:0:14]} Be7 {[%emt 0:9:16]} 11. Nxe4 {[%emt 0:1:10]
} Nxe4 {[%emt 0:4:23]} 12. Bxe7 {[%emt 0:0:9]} Qxe7 {[%emt 0:0:0]} 13. Bxe4 {[%emt 0:0:6]} Rb8 {[%emt 0:0:20]} 14. Qd3 {[%emt 0:5:47]} h6 {[%emt 0:3:14]} 15. Rad1 {[%emt 0:11:40]} 0-0 {[%emt 0:1:19]} 16. Qd6 {[%emt 0:6:57]
} Qxd6 {[%emt 0:1:59]} 17. Rxd6 {[%emt 0:0:7]} Rfc8 {[%emt 0:0:0]} 18. c3 {[%emt 0:3:38]} Kf8 {[%emt 0:3:26]} 19. Rfd1 {[%emt 0:9:54]} Ke7 {[%emt 0:1:37]} 20. R6d3 {[%emt 0:12:22]} Nb6 {[%emt 0:4:45]} 21. Na5 {[%emt 0:1:33]
} Rc7 {[%emt 0:0:41]} 22. Bg2 {[%emt 0:1:56]} f5 {[%emt 0:0:0]} 23. Re3 {[%emt 0:5:54]} Kf6 {[%emt 0:0:54]} 24. Rd6 {[%emt 0:5:15]} Ke7 {[%emt 0:1:36]} 25. Rd1 {[%emt 0:3:48]} Kf6 {[%emt 0:1:17]} 26. Rde1 {[%emt 0:13:0]
} Nd7 {[%emt 0:1:6]} 27. Rd1 {[%emt 0:2:40]} 1/2-1/2

[Event "RUS-chT Premier 2021"]
[White "Samusenko,Maksim"]
[Black "Pervakov,Sergey"]
[WhiteTeam "Ладья"]
[BlackTeam "Киммерия"]
[Site "Sochi"]
[Round "3.17"]
[Annotator "ChessBase"]
[Result "1-0"]
[Date "2021.05.03"]
[WhiteElo "2467"]
[BlackElo "2056"]
[PlyCount "107"]
[TimeControl "60"]

1. e4 {[%emt 0:0:0]} e5 {[%emt 0:0:0]} 2. Nf3 {[%emt 0:0:31]} Nc6 {[%emt 0:0:0]
} 3. Nc3 {[%emt 0:0:39]} Nf6 {[%emt 0:1:32]} 4. Bb5 {[%emt 0:0:0]} Bb4 {[%emt 0:4:29]} 5. 0-0 {[%emt 0:1:9]} 0-0 {[%emt 0:10:4]} 6. Bxc6 {[%emt 0:2:12]} dxc6 {[%emt 0:2:15]} 7. d3 {[%emt 0:0:53]} Nd7 {[%emt 0:10:7]
} 8. Ne2 {[%emt 0:1:28]} Re8 {[%emt 0:0:44]} 9. Ng3 {[%emt 0:0:0]} Nf8 {[%emt 0:4:20]} 10. Be3 {[%emt 0:10:40]} Bd6 {[%emt 0:2:35]} 11. Nd2 {[%emt 0:9:21]} Ng6 {[%emt 0:1:57]} 12. Nf5 {[%emt 0:4:1]} Qf6 {[%emt 0:11:45]
} 13. Qf3 {[%emt 0:18:12]} Nh4 {[%emt 0:1:20]} 14. Nxh4 {[%emt 0:1:39]
} Qxh4 {[%emt 0:0:2]} 15. Qe2 {[%emt 0:6:21]} Be6 {[%emt 0:0:0]} 16. f3 {[%emt 0:5:15]} Rad8 {[%emt 0:5:17]} 17. Qf2 {[%emt 0:8:19]} Qxf2+ {[%emt 0:4:17]} 18. Rxf2 {[%emt 0:0:14]} b6 {[%emt 0:0:41]} 19. a4 {[%emt 0:6:5]
} a5 {[%emt 0:4:16]} 20. Kf1 {[%emt 0:1:50]} f6 {[%emt 0:1:28]
} 21. h4 {[%emt 0:2:43]} Bf7 {[%emt 0:1:10]} 22. Ke2 {[%emt 0:2:0]} Rd7 {[%emt 0:0:27]
} 23. g4 {[%emt 0:1:23]} g6 {[%emt 0:1:55]} 24. Nf1 {[%emt 0:0:0]} Be6 {[%emt 0:2:0]} 25. Ng3 {[%emt 0:0:42]} Bf8 {[%emt 0:5:3]} 26. Rg2 {[%emt 0:1:16]} Bg7 {[%emt 0:2:40]} 27. Bd2 {[%emt 0:1:34]} c5 {[%emt 0:0:0]} 28. b3 {[%emt 0:0:12]} Kf8 {[%emt 0:0:25]} 29. Bc3 {[%emt 0:0:48]} Rf7 {[%emt 0:0:25]} 30. Rf1 {[%emt 0:1:55]} Ke7 {[%emt 0:0:9]} 31. Ke1 {[%emt 0:1:38]
} Kd6 {[%emt 0:0:22]} 32. Ne2 {[%emt 0:1:58]} Bd7 {[%emt 0:0:0]} 33. f4 {[%emt 0:1:38]} exf4 {[%emt 0:0:28]} 34. Nxf4 {[%emt 0:0:10]} c4 {[%emt 0:0:38]} 35. bxc4 {[%emt 0:0:32]} Bxa4 {[%emt 0:1:5]} 36. Kd1 {[%emt 0:0:24]
} Bh6 {[%emt 0:1:29]} 37. Nd5 {[%emt 0:1:4]} Ke6 {[%emt 0:0:0]} 38. Rgf2 {[%emt 0:0:37]} Ref8 {[%emt 0:0:20]} 39. Nxf6 {[%emt 0:0:49]} Bg7 {[%emt 0:0:37]} 40. g5 {[%emt 0:0:0]} Bxf6 {[%emt 0:0:0]} 41. gxf6 {[%emt 0:4:49]
} c5 {[%emt 0:7:16]} 42. Kd2 {[%emt 0:2:41]} Bc6 {[%emt 0:0:0]} 43. Kc1 {[%emt 0:6:22]} Rb7 {[%emt 0:2:7]} 44. Kb2 {[%emt 0:1:0]} Be8 {[%emt 0:0:24]} 45. Ka3 {[%emt 0:0:54]} b5 {[%emt 0:5:3]} 46. cxb5 {[%emt 0:0:13]
} Rxb5 {[%emt 0:0:2]} 47. Rg2 {[%emt 0:2:19]} h6 {[%emt 0:0:0]} 48. f7 {[%emt 0:4:35]} Bxf7 {[%emt 0:4:34]} 49. Rf6+ {[%emt 0:1:45]} Ke7 {[%emt 0:0:34]} 50. Rgf2 {[%emt 0:0:10]} Rb7 {[%emt 0:1:2]} 51. Bd2 {[%emt 0:2:53]
} g5 {[%emt 0:1:28]} 52. hxg5 {[%emt 0:0:30]} hxg5 {[%emt 0:0:0]} 53. Bxg5 {[%emt 0:0:7]} Ke8 {[%emt 0:1:16]} 54. Rd6 {[%emt 0:0:40]} 1-0